fUST/lending_fUST_20250913
["ID","MTS","AMOUNT","RATE_DAILY","PERIOD"]
[385323565,1757775033821,-500.0,0.00024656,2]
[385323567,1757775033831,-500.0,0.00024656,2]
[385323569,1757775033840,-500.0,0.00024656,2]
[385323571,1757775033850,-500.0,0.00024656,2]
[385323572,1757775033859,-500.0,0.00024656,2]
[385323573,1757775033868,-500.0,0.00024656,2]
[385323574,1757775033878,-500.0,0.00024656,2]
[385323575,1757775033888,-500.0,0.00024656,2]
[385323576,1757775033897,-500.0,0.00024656,2]
[385323577,1757775033906,-500.0,0.00024656,2]
[385323578,1757775033915,-500.0,0.00024656,2]
[385323579,1757775033924,-500.0,0.00024656,2]
[385323580,1757775033934,-500.0,0.00024656,2]
[385323581,1757775033943,-500.0,0.00024656,2]
[385323582,1757775033952,-500.0,0.00024656,2]
[385323583,1757775033962,-500.0,0.00024656,2]
[385323584,1757775033971,-500.0,0.00024656,2]
[385323585,1757775033981,-500.0,0.00024656,2]
[385323586,1757775033990,-500.0,0.00024656,2]
[385323587,1757775034000,-500.0,0.00024656,2]
[385323588,1757775034010,-500.0,0.00024656,2]
[385323589,1757775034021,-500.0,0.00024656,2]
[385323590,1757775034031,-500.0,0.00024656,2]
[385323591,1757775034040,-500.0,0.00024656,2]
[385323592,1757775034050,-500.0,0.00024656,2]
[385323593,1757775034060,-500.0,0.00024656,2]
[385323594,1757775034069,-500.0,0.00024656,2]
[385323595,1757775034080,-500.0,0.00024656,2]
[385323596,1757775034091,-317.32315551,0.00024656,2]
[385323597,1757775034100,-500.0,0.00024656,2]
[385323598,1757775034110,-500.0,0.00024656,2]
[385323599,1757775034120,-500.0,0.00024656,2]
[385323600,1757775034130,-500.0,0.00024656,2]
[385323601,1757775034139,-500.0,0.00024656,2]
[385323602,1757775034150,-500.0,0.00024656,2]
[385323603,1757775034160,-500.0,0.00024656,2]
[385323604,1757775034169,-500.0,0.00024656,2]
[385323605,1757775034179,-500.0,0.00024656,2]
[385323606,1757775034189,-500.0,0.00024656,2]
[385323607,1757775034198,-500.0,0.00024656,2]
[385323608,1757775034208,-500.0,0.00024656,2]
[385323609,1757775034217,-500.0,0.00024656,2]
[385323610,1757775034226,-500.0,0.00024656,2]
[385323611,1757775034236,-500.0,0.00024656,2]
[385323612,1757775034245,-500.0,0.00024656,2]
[385323613,1757775034255,-500.0,0.00024656,2]
[385323614,1757775034264,-500.0,0.00024656,2]
[385323615,1757775034274,-500.0,0.00024656,2]
[385323616,1757775034284,-500.0,0.00024656,2]
[385323617,1757775034294,-500.0,0.00024656,2]
[385323618,1757775034304,-500.0,0.00024656,2]
[385323619,1757775034313,-500.0,0.00024656,2]
[385323620,1757775034323,-549.99999999,0.00024656,2]
[385323621,1757775034333,-480.9208494,0.00024657,3]
[385323622,1757775034343,-480.0,0.00024657,3]
[385323623,1757775034352,-480.0,0.00024657,3]
[385323624,1757775034361,-480.8400242,0.00024657,3]
[385323625,1757775034371,-487.40281628,0.00024657,3]
[385323626,1757775034380,-233.1568031,0.00024657,3]
[385323627,1757775034389,-480.0,0.00024657,3]
[385323628,1757775034398,-480.0,0.00024657,3]
[385323629,1757775034409,-480.0,0.00024657,3]
[385323630,1757775034418,-480.0,0.00024657,3]
[385323631,1757775034427,-480.0,0.00024657,3]
[385323632,1757775034436,-319.66078127,0.00024657,3]
[385323633,1757775034446,-480.0,0.00024657,3]
[385323634,1757775034455,-480.0,0.00024657,3]
[385323635,1757775034464,-480.0,0.00024657,3]
[385323636,1757775034473,-578.70045552,0.00024657,3]
[385323637,1757775034483,-480.0,0.00024657,3]
[385323638,1757775034492,-480.0,0.00024657,3]
[385323639,1757775034501,-480.0,0.00024657,3]
[385323640,1757775034511,-547.65043332,0.00024657,3]
[385323641,1757775034522,-480.0,0.00024657,3]
[385323642,1757775034532,-480.0,0.00024657,3]
[385323643,1757775034540,-480.0,0.00024657,3]
[385323644,1757775034550,-480.0,0.00024657,3]
[385323645,1757775034560,-480.0,0.00024657,3]
[385323646,1757775034569,-480.0,0.00024657,3]
[385323647,1757775034578,-480.0,0.00024657,3]
[385323648,1757775034588,-251.84508973,0.00024657,3]
[385323649,1757775034598,-480.0,0.00024657,3]
[385323650,1757775034607,-480.0,0.00024657,3]
[385323651,1757775034617,-502.05436363,0.00024657,3]
[385323652,1757775034626,-480.0,0.00024657,3]
[385323653,1757775034636,-480.0,0.00024657,3]
[385323654,1757775034645,-480.0,0.00024657,3]
[385323655,1757775034654,-480.0,0.00024657,3]
[385323656,1757775034663,-480.0,0.00024657,3]
[385323657,1757775034673,-480.0,0.00024657,3]
[385323658,1757775034682,-488.42224923,0.00024657,3]
[385323659,1757775034692,-480.0,0.00024657,3]
[385323660,1757775034701,-480.0,0.00024657,3]
[385323661,1757775034710,-480.0,0.00024657,3]
[385323662,1757775034720,-480.0,0.00024657,3]
[385323663,1757775034729,-480.0,0.00024657,3]
[385323664,1757775034739,-480.0,0.00024657,3]
[385323665,1757775034748,-480.0,0.00024657,3]
[385323666,1757775034757,-480.0,0.00024657,3]
[385323667,1757775034769,-480.0,0.00024657,3]
[385323668,1757775034778,-480.0,0.00024657,3]
[385323669,1757775034787,-558.78,0.00024657,3]
[385323670,1757775034797,-451.94409471,0.00024657,3]
[385323671,1757775034806,-480.0,0.00024657,3]
[385323672,1757775034815,-500.0,0.00024657,3]
[385323673,1757775034824,-413.14174658,0.00024657,3]
[385323674,1757775034834,-480.0,0.00024657,3]
[385323675,1757775034843,-480.0,0.00024657,3]
[385323676,1757775034852,-489.74537352,0.00024657,3]
[385323677,1757775034862,-480.0,0.00024657,3]
[385323678,1757775034871,-480.0,0.00024657,3]
[385323679,1757775034881,-480.0,0.00024657,3]
[385323680,1757775034890,-480.0,0.00024657,3]
[385323681,1757775034899,-480.0,0.00024657,3]
[385323682,1757775034908,-480.0,0.00024657,3]
[385323683,1757775034917,-480.0,0.00024657,3]
[385323684,1757775034927,-480.0,0.00024657,3]
[385323685,1757775034937,-494.02212438,0.00024657,3]
[385323686,1757775034946,-480.0,0.00024657,3]
[385323687,1757775034955,-480.0,0.00024657,3]
[385323688,1757775034965,-480.0,0.00024657,3]
[385323689,1757775034974,-480.0,0.00024657,3]
[385323690,1757775034983,-480.0,0.00024657,3]
[385323691,1757775034992,-383.09381774,0.00024657,2]
[385323692,1757775035001,-480.0,0.00024657,3]
[385323693,1757775035011,-73.64399102,0.00024657,3]
[385323694,1757775035157,-406.35600898,0.00024657,3]
[385323695,1757775035168,-480.0,0.00024657,3]
[385323696,1757775035178,-227.73040716,0.00024657,3]
[385323697,1757775035190,-252.26959284,0.00024657,3]
[385323698,1757775035200,-480.0,0.00024657,3]
[385323699,1757775035210,-480.0,0.00024657,3]
[385323700,1757775035221,-480.0,0.00024657,3]
[385323701,1757775035232,-480.0,0.00024657,3]
[385323702,1757775035241,-480.0,0.00024657,3]
[385323703,1757775035251,-480.0,0.00024657,3]
[385323704,1757775035260,-480.0,0.00024657,3]
[385323705,1757775035272,-480.0,0.00024657,3]
[385323706,1757775035281,-480.0,0.00024657,3]
[385323707,1757775035290,-121.91936783,0.00024657,3]
[385323708,1757775035303,-358.08063217,0.00024657,3]
[385323709,1757775035312,-480.0,0.00024657,3]
[385323710,1757775035322,-283.41936783,0.00024657,3]
[385323712,1757775038188,-1110.91819394,0.00021487,2]
[385323714,1757775038198,-2320.95596561,0.00021487,2]
[385323715,1757775038209,-594.98404894,0.00021487,2]
[385323716,1757775038221,-561.84778779,0.00021487,2]
[385323717,1757775038231,-1192.07922957,0.00021487,2]
[385323718,1757775038261,-667.85498869,0.00021487,2]
[385323719,1757775038428,-455.27,0.00021487,2]
[385323720,1757775038440,-1888.27057153,0.00021487,2]
[385323721,1757775038451,-12694.3139584,0.00021487,2]
[385323722,1757775038461,-196.58063217,0.00024657,3]
[385323723,1757775038470,-433.21067178,0.00024657,3]
[385323724,1757775038479,-480.0,0.00024657,3]
[385323725,1757775038489,-480.0,0.00024657,3]
[385323726,1757775038498,-480.0,0.00024657,3]
[385323727,1757775038507,-480.0,0.00024657,3]
[385323728,1757775038517,-480.0,0.00024657,3]
[385323729,1757775038526,-480.0,0.00024657,3]
[385323730,1757775038535,-480.0,0.00024657,3]
[385323731,1757775038545,-480.0,0.00024657,3]
[385323732,1757775038554,-480.0,0.00024657,3]
[385323733,1757775038563,-480.0,0.00024657,3]
[385323734,1757775038572,-341.53491915,0.00024657,3]
[385323735,1757775038581,-480.0,0.00024657,3]
[385323736,1757775038590,-802.78,0.00024657,3]
[385323737,1757775038600,-480.0,0.00024657,3]
[385323738,1757775038609,-480.0,0.00024657,3]
[385323739,1757775038618,-480.0,0.00024657,3]
[385323740,1757775038627,-480.0,0.00024657,3]
[385323741,1757775038636,-520.32,0.00024657,3]
[385323742,1757775038646,-480.0,0.00024657,3]
[385323743,1757775038656,-480.0,0.00024657,3]
[385323744,1757775038665,-480.0,0.00024657,3]
[385323745,1757775038674,-480.0,0.00024657,3]
[385323746,1757775038683,-480.0,0.00024657,3]
[385323747,1757775038693,-480.0,0.00024657,3]
[385323748,1757775038702,-480.0,0.00024657,3]
[385323749,1757775038711,-480.0,0.00024657,3]
[385323750,1757775038721,-480.0,0.00024657,3]
[385323751,1757775038730,-480.0,0.00024657,3]
[385323752,1757775038739,-480.0,0.00024657,3]
[385323753,1757775038748,-493.91534547,0.00024657,3]
[385323754,1757775038758,-593.99,0.00024657,3]
[385323755,1757775038771,-480.0,0.00024657,3]
[385323756,1757775038780,-480.0,0.00024657,3]
[385323757,1757775038790,-480.0,0.00024657,3]
[385323758,1757775038799,-480.0,0.00024657,3]
[385323759,1757775038808,-480.0,0.00024657,3]
[385323760,1757775038817,-480.0,0.00024657,3]
[385323761,1757775038826,-480.0,0.00024657,3]
[385323762,1757775038835,-480.0,0.00024657,3]
[385323763,1757775038844,-480.0,0.00024657,3]
[385323764,1757775038854,-480.0,0.00024657,3]
[385323765,1757775038863,-480.0,0.00024657,3]
[385323766,1757775038872,-480.0,0.00024657,3]
[385323767,1757775038882,-480.0,0.00024657,3]
[385323768,1757775038891,-480.0,0.00024657,3]
[385323769,1757775038900,-480.0,0.00024657,3]
[385323770,1757775038909,-480.0,0.00024657,3]
[385323771,1757775038918,-480.0,0.00024657,3]
[385323772,1757775038927,-480.0,0.00024657,3]
[385323773,1757775038936,-480.0,0.00024657,3]
[385323774,1757775038945,-480.0,0.00024657,3]
[385323775,1757775038955,-480.0,0.00024657,3]
[385323776,1757775038964,-480.0,0.00024657,3]
[385323777,1757775038973,-480.0,0.00024657,3]
[385323778,1757775038982,-790.7,0.00024657,3]
[385323779,1757775038991,-480.0,0.00024657,3]
[385323780,1757775039000,-480.0,0.00024657,3]
[385323781,1757775039010,-389.47827194,0.00024657,3]
[385323782,1757775039020,-480.0,0.00024657,3]
[385323783,1757775039029,-837.42,0.00024657,3]
[385323784,1757775039038,-480.0,0.00024657,3]
[385323785,1757775039047,-480.0,0.00024657,3]
[385323786,1757775039057,-480.0,0.00024657,3]
[385323787,1757775039066,-656.36,0.00024657,3]
[385323788,1757775039075,-480.0,0.00024657,3]
[385323789,1757775039088,-480.0,0.00024657,3]
[385323790,1757775039098,-480.0,0.00024657,3]
[385323791,1757775039107,-480.0,0.00024657,3]
[385323792,1757775039116,-480.0,0.00024657,3]
[385323793,1757775039126,-480.0,0.00024657,3]
[385323794,1757775039135,-609.21,0.00024657,3]
[385323795,1757775039145,-480.0,0.00024657,3]
[385323796,1757775039154,-480.0,0.00024657,3]
[385323797,1757775039163,-587.14,0.00024657,3]
[385323798,1757775039174,-480.0,0.00024657,3]
[385323799,1757775039183,-480.0,0.00024657,3]
[385323800,1757775039192,-480.0,0.00024657,3]
[385323801,1757775039201,-480.0,0.00024657,3]
[385323802,1757775039210,-419.49256286,0.00024657,3]
[385323803,1757775039225,-60.50743714,0.00024657,3]
[385323804,1757775039234,-480.0,0.00024657,3]
[385323805,1757775039243,-489.4116349,0.00024657,3]
[385323806,1757775039252,-480.0,0.00024657,3]
[385323807,1757775039262,-480.0,0.00024657,3]
[385323808,1757775039272,-480.0,0.00024657,3]
[385323809,1757775039281,-480.0,0.00024657,3]
[385323810,1757775039290,-480.0,0.00024657,3]
[385323811,1757775039300,-486.26434182,0.00024657,3]
[385323812,1757775039309,-480.0,0.00024657,3]
[385323813,1757775039318,-480.0,0.00024657,3]
[385323814,1757775039327,-480.0,0.00024657,3]
[385323815,1757775039336,-480.0,0.00024657,3]
[385323816,1757775039346,-480.0,0.00024657,3]
[385323817,1757775039356,-480.0,0.00024657,3]
[385323818,1757775039365,-782.89,0.00024657,3]
[385323819,1757775039374,-480.0,0.00024657,3]
[385323820,1757775039383,-480.0,0.00024657,3]
[385323821,1757775039393,-1109.25,0.00024657,3]
[385323822,1757775039402,-480.0,0.00024657,3]
[385323823,1757775039411,-480.0,0.00024657,3]
[385323824,1757775039420,-480.0,0.00024657,3]
[385323825,1757775039429,-736.88,0.00024657,3]
[385323826,1757775039439,-480.0,0.00024657,3]
[385323827,1757775039448,-480.0,0.00024657,3]
[385323828,1757775039457,-169.08712074,0.00024657,3]
[385323829,1757775039470,-310.91287926,0.00024657,3]
[385323830,1757775039479,-480.0,0.00024657,3]
[385323831,1757775039488,-480.0,0.00024657,3]
[385323832,1757775039497,-480.0,0.00024657,3]
[385323833,1757775039506,-480.0,0.00024657,3]
[385323834,1757775039517,-480.0,0.00024657,3]
[385323835,1757775039528,-480.0,0.00024657,3]
[385323836,1757775039537,-508.55753923,0.00024657,3]
[385323837,1757775039547,-480.0,0.00024657,3]
[385323838,1757775039556,-480.0,0.00024657,3]
[385323839,1757775039565,-480.0,0.00024657,3]
[385323840,1757775039574,-480.0,0.00024657,3]
[385323841,1757775039583,-480.0,0.00024657,3]
[385323842,1757775039592,-622.77442794,0.00024657,3]
[385323843,1757775039602,-500.86,0.00024657,3]
[385323844,1757775039611,-480.0,0.00024657,3]
[385323845,1757775039621,-480.0,0.00024657,3]
[385323846,1757775039630,-480.0,0.00024657,3]
[385323847,1757775039640,-49.94890018,0.00024657,3]
[385323848,1757775039653,-430.05109982,0.00024657,3]
[385323849,1757775039662,-86.71139339,0.00024657,3]
[385323850,1757775039674,-260.23756896,0.00024657,3]
[385323851,1757775039683,-480.0,0.00024657,3]
[385323852,1757775039693,-480.0,0.00024657,3]
[385323853,1757775039702,-482.89792838,0.00024657,3]
[385323854,1757775039712,-216.86450266,0.00024657,3]
[385323879,1757775040305,-263.13549734,0.00024657,3]
[385323880,1757775040315,-119.62649855,0.00024657,3]
[385323881,1757775040387,-360.37350145,0.00024657,3]
[385323882,1757775040397,-480.0,0.00024657,3]
[385323883,1757775040406,-500.0,0.00024657,3]
[385323884,1757775040415,-500.0,0.00024657,3]
[385323885,1757775040424,-28.60871281,0.00024657,3]
[385323894,1757775044465,-471.39128719,0.00024657,3]
[385323895,1757775044474,-559.36,0.00024657,3]
[385323896,1757775044483,-480.0,0.00024657,3]
[385323897,1757775044493,-480.0,0.00024657,3]
[385323898,1757775044502,-480.0,0.00024657,3]
[385323899,1757775044511,-480.0,0.00024657,3]
[385323900,1757775044521,-480.0,0.00024657,3]
[385323901,1757775044530,-480.0,0.00024657,3]
[385323902,1757775044540,-480.0,0.00024657,3]
[385323903,1757775044549,-480.0,0.00024657,3]
[385323904,1757775044558,-141.30619779,0.00024657,3]
[385323932,1757775047256,-338.69380221,0.00024657,3]
[385323933,1757775047265,-481.95646586,0.00024657,3]
[385323934,1757775047275,-480.0,0.00024657,3]
[385323935,1757775047284,-526.89653165,0.00024657,3]
[385323936,1757775047293,-480.0,0.00024657,3]
[385323937,1757775047302,-480.0,0.00024657,3]
[385323938,1757775047311,-480.0,0.00024657,3]
[385323939,1757775047320,-480.0,0.00024657,3]
[385323940,1757775047330,-480.0,0.00024657,3]
[385323941,1757775047339,-480.0,0.00024657,3]
[385323942,1757775047348,-480.0,0.00024657,3]
[385323943,1757775047357,-697.7,0.00024657,3]
[385323944,1757775047366,-480.0,0.00024657,3]
[385323945,1757775047375,-362.26117929,0.00024657,3]
[385323946,1757775047386,-117.73882071,0.00024657,3]
[385323947,1757775047396,-775.0,0.00024657,3]
[385323948,1757775047405,-480.0,0.00024657,3]
[385323949,1757775047414,-480.0,0.00024657,2]
[385323950,1757775047423,-480.0,0.00024657,3]
[385323951,1757775047432,-552.70398207,0.00024657,3]
[385323952,1757775047441,-480.0,0.00024657,3]
[385323953,1757775047450,-480.0,0.00024657,3]
[385323954,1757775047459,-480.0,0.00024657,3]
[385323955,1757775047468,-480.0,0.00024657,3]
[385323956,1757775047478,-480.0,0.00024657,3]
[385323957,1757775047486,-480.0,0.00024657,3]
[385323958,1757775047495,-480.0,0.00024657,3]
[385323959,1757775047505,-480.0,0.00024657,3]
[385323960,1757775047514,-480.0,0.00024657,3]
[385323961,1757775047524,-383.31519342,0.00024657,3]
[385323962,1757775047596,-375.55480658,0.00024657,3]
[385323963,1757775047605,-480.0,0.00024657,3]
[385323964,1757775047615,-480.0,0.00024657,3]
[385323965,1757775047624,-879.73,0.00024657,3]
[385323966,1757775047633,-480.0,0.00024657,3]
[385323967,1757775047643,-480.0,0.00024657,3]
[385323968,1757775047652,-480.0,0.00024657,3]
[385323969,1757775047661,-575.51,0.00024657,3]
[385323970,1757775047670,-480.0,0.00024657,3]
[385323971,1757775047679,-480.0,0.00024657,3]
[385323972,1757775047688,-1544.67,0.00024657,3]
[385323973,1757775047696,-480.0,0.00024657,3]
[385323974,1757775047704,-480.0,0.00024657,3]
[385323975,1757775047713,-480.0,0.00024657,3]
[385323976,1757775047722,-480.0,0.00024657,3]
[385323977,1757775047731,-480.0,0.00024657,3]
[385323978,1757775047740,-480.0,0.00024657,3]
[385323979,1757775047749,-4386.04,0.00024657,3]
[385323980,1757775047758,-480.0,0.00024657,3]
[385323981,1757775047767,-3001.66,0.00024657,3]
[385323982,1757775047778,-480.0,0.00024657,3]
[385323983,1757775047787,-480.0,0.00024657,3]
[385323984,1757775047796,-485.25609804,0.00024657,3]
[385323985,1757775047805,-480.0,0.00024657,3]
[385323986,1757775047815,-480.0,0.00024657,3]
[385323987,1757775047824,-480.0,0.00024657,3]
[385323988,1757775047834,-808.49,0.00024657,3]
[385323989,1757775047843,-480.0,0.00024657,3]
[385323990,1757775047853,-480.0,0.00024657,3]
[385323991,1757775047863,-480.0,0.00024657,3]
[385323992,1757775047872,-1227.18,0.00024657,3]
[385323993,1757775047881,-480.0,0.00024657,3]
[385323994,1757775047891,-480.0,0.00024657,3]
[385323995,1757775047900,-480.0,0.00024657,3]
[385323996,1757775047909,-480.0,0.00024657,3]
[385323997,1757775047918,-480.0,0.00024657,3]
[385323998,1757775047926,-480.0,0.00024657,3]
[385323999,1757775047936,-480.0,0.00024657,3]
[385324000,1757775047945,-480.0,0.00024657,3]
[385324001,1757775047954,-480.0,0.00024657,3]
[385324002,1757775047964,-480.0,0.00024657,3]
[385324003,1757775047973,-480.0,0.00024657,3]
[385324004,1757775047982,-480.0,0.00024657,3]
[385324005,1757775047991,-9499.15,0.00024657,3]
[385324006,1757775048000,-480.0,0.00024657,3]
[385324007,1757775048010,-480.0,0.00024657,3]
[385324008,1757775048019,-480.0,0.00024657,3]
[385324009,1757775048030,-480.0,0.00024657,3]
[385324010,1757775048039,-497.03,0.00024657,3]
[385324011,1757775048048,-480.0,0.00024657,3]
[385324012,1757775048058,-272.79581229,0.00024657,3]
[385324013,1757775048068,-73.20218682,0.00024657,3]
[385324014,1757775048081,-406.79781318,0.00024657,3]
[385324015,1757775048093,-332.21031671,0.00024657,3]
[385324018,1757775156707,155.0,0.00024,120]
[385324019,1757775158400,155.0,0.000257,120]
[385324020,1757775159840,155.0,0.000273,120]
[385324023,1757775333775,201.4747453,0.00027397,120]
[385324028,1757775634957,200.0,0.00027,120]
[385324061,1757776232880,-1200.0,0.00019899,2]
[385324062,1757776232891,-300.0,0.00019899,2]
[385324063,1757776232900,-300.0,0.00019899,2]
[385324064,1757776232910,-300.0,0.00019899,2]
[385324065,1757776232920,-1200.0,0.00019899,2]
[385324066,1757776232930,-9337.00571226,0.000199,5]
[385324067,1757776232939,-1731.10755401,0.000199,2]
[385324068,1757776232949,-1731.10755394,0.00021149,2]
[385324069,1757776232958,-363.110777,0.00021653,2]
[385324070,1757776232968,-387.42821736,0.00021751,2]
[385324071,1757776232977,-323.47568586,0.00021751,2]
[385324072,1757776232987,-151.0,0.00021882,2]
[385324073,1757776232996,-18603.8837,0.00021882,2]
[385324074,1757776233006,-151.0,0.00021882,2]
[385324076,1757776233016,-151.0,0.00021882,2]
[385324078,1757776233026,-162.380719,0.00021882,2]
[385324079,1757776233035,-151.0,0.00021882,2]
[385324080,1757776233045,-151.0,0.00021882,2]
[385324081,1757776233054,-500.0,0.00021882,2]
[385324082,1757776233064,-151.0,0.00021882,2]
[385324083,1757776233074,-500.0,0.00021882,2]
[385324084,1757776233083,-151.0,0.00021882,2]
[385324085,1757776233094,-500.0,0.00021882,2]
[385324086,1757776233104,-151.0,0.00021882,2]
[385324087,1757776233114,-151.0,0.00021882,2]
[385324088,1757776233123,-500.0,0.00021882,2]
[385324089,1757776233133,-500.0,0.00021882,2]
[385324090,1757776233143,-151.0,0.00021882,2]
[385324091,1757776233153,-500.0,0.00021882,2]
[385324092,1757776233162,-151.0,0.00021882,2]
[385324093,1757776233171,-151.0,0.00021882,2]
[385324094,1757776233356,-151.0,0.00021882,2]
[385324095,1757776233370,-500.0,0.00021882,2]
[385324096,1757776233379,-151.0,0.00021882,2]
[385324097,1757776233389,-500.0,0.00021882,2]
[385324098,1757776233399,-151.0,0.00021882,2]
[385324099,1757776233408,-500.0,0.00021882,2]
[385324100,1757776233418,-500.0,0.00021882,2]
[385324101,1757776233427,-500.0,0.00021882,2]
[385324102,1757776233437,-500.0,0.00021882,2]
[385324103,1757776233446,-500.0,0.00021882,2]
[385324104,1757776233456,-500.0,0.00021882,2]
[385324105,1757776233465,-500.0,0.00021882,2]
[385324106,1757776233475,-5136.53645275,0.00021895,2]
[385324107,1757776233485,-5000.0,0.00021895,2]
[385324108,1757776233494,-5000.0,0.00021895,2]
[385324109,1757776233504,-5000.0,0.00021895,2]
[385324110,1757776233513,-5000.0,0.00021895,2]
[385324111,1757776233523,-1731.10755394,0.00022398,2]
[385324112,1757776233532,-1206.26720928,0.00022478,2]
[385324113,1757776233542,-181.700092,0.00022925,2]
[385324114,1757776233551,-236.28195543,0.00022931,2]
[385324115,1757776233561,-181.998117,0.00022931,2]
[385324116,1757776233570,-10587.83715118,0.00023112,2]
[385324117,1757776233580,-179.1532043,0.00023288,2]
[385324118,1757776233589,-1731.10755394,0.00023647,2]
[385324119,1757776233599,-1548.16315655,0.00023746,2]
[385324120,1757776233608,-9000.0,0.00024,2]
[385324121,1757776233618,-168.0,0.00024038,2]
[385324122,1757776233628,-417.15472785,0.0002413,2]
[385324123,1757776233637,-847.12775373,0.0002413,2]
[385324124,1757776233647,-160.0,0.0002413,2]
[385324125,1757776233661,-184.682,0.00024172,6]
[385324126,1757776233671,-160.0,0.00024181,2]
[385324127,1757776233680,-160.0,0.00024181,2]
[385324128,1757776233690,-168.0,0.0002422,2]
[385324129,1757776233701,-2150.91773104,0.00024457,2]
[385324130,1757776233711,-1292.60884071,0.0002448,2]
[385324131,1757776233721,-2150.91773102,0.00024482,2]
[385324132,1757776233732,-2150.91773102,0.00024507,2]
[385324133,1757776233741,-2150.91773102,0.00024532,2]
[385324134,1757776233750,-168.0,0.00024546,2]
[385324135,1757776233760,-500.0,0.00024556,2]
[385324136,1757776233769,-1509.34,0.00024556,2]
[385324137,1757776233779,-1509.34,0.00024556,2]
[385324138,1757776233789,-1509.34,0.00024556,2]
[385324139,1757776233799,-1509.34,0.00024556,2]
[385324140,1757776233808,-1509.34,0.00024556,2]
[385324141,1757776233818,-1509.34,0.00024556,2]
[385324142,1757776233828,-33691.71466982,0.00024557,2]
[385324143,1757776233839,-2150.91773102,0.00024557,2]
[385324144,1757776233849,-1919.84874719,0.00024557,2]
[385324145,1757776233859,-205.01,0.000246,2]
[385324146,1757776233868,-302.35,0.00024645,3]
[385324147,1757776233879,-151.17,0.00024645,3]
[385324148,1757776233888,-453.56,0.00024645,3]
[385324149,1757776233898,-1509.34,0.0002465,2]
[385324150,1757776233908,-500.0,0.00024651,2]
[385324151,1757776233917,-500.0,0.00024651,2]
[385324152,1757776233927,-500.0,0.00024651,2]
[385324153,1757776233936,-500.0,0.00024651,2]
[385324154,1757776233946,-383.44384837,0.00024651,2]
[385324155,1757776233955,-502.26061927,0.00024655,2]
[385324156,1757776233966,-273.78674319,0.00024656,2]
[385324157,1757776233977,-647.54729202,0.00024656,2]
[385324158,1757776233987,-1509.34,0.00024656,2]
[385324159,1757776233997,-1509.34,0.00024656,2]
[385324160,1757776234006,-1509.34,0.00024656,2]
[385324161,1757776234016,-1509.34,0.00024656,2]
[385324162,1757776234025,-1509.34,0.00024656,2]
[385324163,1757776234035,-1509.34,0.00024656,2]
[385324164,1757776234044,-1509.34,0.00024656,2]
[385324165,1757776234054,-1509.34,0.00024656,2]
[385324166,1757776234063,-1509.34,0.00024656,2]
[385324167,1757776234074,-1509.34,0.00024656,2]
[385324168,1757776234083,-1509.34,0.00024656,2]
[385324169,1757776234093,-1509.34,0.00024656,2]
[385324170,1757776234103,-1509.34,0.00024656,2]